fUSD/lending_fUSD_20250923
["ID","MTS","AMOUNT","RATE_DAILY","PERIOD"]
[387227478,1758661876270,-151.0,0.00024657,7]
[387227479,1758661876280,-481.455919,0.00024657,7]
[387227480,1758661876290,-405.31050493,0.00024657,3]
[387227481,1758661876299,-151.0,0.00024657,7]
[387227482,1758661876308,-481.455919,0.00024657,7]
[387227483,1758661876318,-158.55,0.00024657,7]
[387227484,1758661876328,-400.0,0.00024657,3]
[387227485,1758661876337,-481.455919,0.00024657,7]
[387227486,1758661876347,-158.55,0.00024657,7]
[387227487,1758661876356,-726.57,0.00024657,3]
[387227488,1758661876365,-481.455919,0.00024657,7]
[387227489,1758661876374,-158.55,0.00024657,7]
[387227490,1758661876384,-400.0,0.00024657,3]
[387227491,1758661876394,-400.0,0.00024657,3]
[387227492,1758661876404,-481.455911,0.00024657,7]
[387227493,1758661876414,-158.55,0.00024657,7]
[387227494,1758661876424,-400.0,0.00024657,3]
[387227495,1758661876434,-158.55,0.00024657,7]
[387227496,1758661876444,-158.55,0.00024657,7]
[387227497,1758661876454,-151.0,0.00024657,7]
[387227498,1758661876464,-400.0,0.00024657,3]
[387227499,1758661876473,-473.361566,0.00024657,7]
[387227500,1758661876483,-158.55,0.00024657,7]
[387227501,1758661876493,-151.0,0.00024657,7]
[387227502,1758661876502,-473.361566,0.00024657,7]
[387227503,1758661876512,-158.55,0.00024657,7]
[387227504,1758661876521,-151.0,0.00024657,7]
[387227505,1758661876530,-473.361566,0.00024657,7]
[387227506,1758661876540,-158.55,0.00024657,7]
[387227507,1758661876549,-151.0,0.00024657,7]
[387227508,1758661876558,-473.361566,0.00024657,7]
[387227509,1758661876568,-151.0,0.00024657,7]
[387227510,1758661876577,-400.0,0.00024657,3]
[387227511,1758661876590,-400.0,0.00024657,3]
[387227512,1758661876599,-158.55,0.00024657,7]
[387227513,1758661876609,-151.0,0.00024657,7]
[387227514,1758661876619,-151.0,0.00024657,7]
[387227515,1758661876629,-151.0,0.00024657,7]
[387227516,1758661876639,-473.361566,0.00024657,7]
[387227517,1758661876649,-151.0,0.00024657,7]
[387227518,1758661876660,-400.0,0.00024657,3]
[387227519,1758661876670,-151.0,0.00024657,7]
[387227520,1758661876680,-158.55,0.00024657,7]
[387227521,1758661876689,-151.0,0.00024657,7]
[387227522,1758661876699,-151.0,0.00024657,7]
[387227523,1758661876709,-151.0,0.00024657,7]
[387227524,1758661876718,-473.361566,0.00024657,7]
[387227525,1758661876728,-151.0,0.00024657,7]
[387227526,1758661876738,-158.55,0.00024657,7]
[387227527,1758661876749,-151.0,0.00024657,7]
[387227528,1758661876759,-288.695151,0.00024657,7]
[387227529,1758661876769,-151.0,0.00024657,7]
[387227530,1758661876778,-473.361566,0.00024657,7]
[387227531,1758661876787,-151.0,0.00024657,7]
[387227532,1758661876797,-400.0,0.00024657,3]
[387227533,1758661876807,-151.0,0.00024657,7]
[387227534,1758661876817,-158.55,0.00024657,7]
[387227535,1758661876826,-473.361566,0.00024657,7]
[387227536,1758661876835,-151.0,0.00024657,7]
[387227537,1758661876844,-400.0,0.00024657,3]
[387227538,1758661876854,-151.0,0.00024657,7]
[387227539,1758661876863,-151.0,0.00024657,7]
[387227540,1758661876872,-158.55,0.00024657,7]
[387227541,1758661876882,-473.361566,0.00024657,7]
[387227542,1758661876891,-151.0,0.00024657,7]
[387227543,1758661876901,-151.0,0.00024657,7]
[387227544,1758661876910,-151.0,0.00024657,7]
[387227545,1758661876920,-151.0,0.00024657,7]
[387227546,1758661876929,-158.55,0.00024657,7]
[387227547,1758661876940,-473.361566,0.00024657,7]
[387227548,1758661876950,-151.0,0.00024657,7]
[387227549,1758661876959,-151.0,0.00024657,7]
[387227550,1758661876969,-404.58120035,0.00024657,3]
[387227551,1758661876978,-151.0,0.00024657,7]
[387227552,1758661876988,-473.361566,0.00024657,7]
[387227553,1758661876997,-400.0,0.00024657,3]
[387227554,1758661877007,-158.55,0.00024657,7]
[387227555,1758661877016,-1000.0,0.00024658,2]
[387227556,1758661877026,-527.41,0.00024658,2]
[387227557,1758661877035,-1193.88,0.00024658,2]
[387227558,1758661877046,-500.0,0.00024658,2]
[387227559,1758661877057,-208.0,0.00024671,2]
[387227560,1758661877066,-501.27823862,0.00024673,2]
[387227561,1758661877076,-503.66761261,0.00024673,2]
[387227562,1758661877098,-500.0,0.00024673,2]
[387227563,1758661877117,-344.06902727,0.00024673,2]
[387227564,1758661877136,-500.0,0.00024673,2]
[387227565,1758661877155,-502.41953048,0.00024673,2]
[387227566,1758661877170,-500.0,0.00024673,2]
[387227567,1758661877190,-500.0,0.00024673,2]
[387227568,1758661877210,-500.0,0.00024673,2]
[387227569,1758661877229,-398.02978092,0.00024673,2]
[387227570,1758661877247,-500.0,0.00024673,2]
[387227571,1758661877265,-500.0,0.00024673,2]
[387227572,1758661877285,-500.0,0.00024673,2]
[387227573,1758661877300,-500.0,0.00024673,2]
[387227574,1758661877319,-500.0,0.00024673,2]
[387227575,1758661877331,-500.0,0.00024673,2]
[387227576,1758661877349,-500.0,0.00024673,2]
[387227577,1758661877362,-500.0,0.00024673,2]
[387227578,1758661877380,-500.0,0.00024673,2]
[387227579,1758661877395,-500.0,0.00024673,2]
[387227580,1758661877411,-647.50941542,0.00024673,2]
[387227581,1758661877426,-160.42789451,0.00024673,2]
[387227582,1758661877441,-506.04104192,0.00024673,2]
[387227583,1758661877456,-500.0,0.00024673,2]
[387227584,1758661877471,-500.0,0.00024673,2]
[387227585,1758661877487,-500.0,0.00024673,2]
[387227586,1758661877503,-500.0,0.00024673,2]
[387227587,1758661877518,-500.18802203,0.00024673,2]
[387227588,1758661877534,-500.0,0.00024673,2]
[387227589,1758661877549,-1048.1332613,0.00024696,2]
[387227590,1758661877565,-1604.9,0.00024699,3]
[387227591,1758661877580,-28211.07,0.000247,7]
[387227592,1758661877599,-516.64379166,0.000247,7]
[387227593,1758661877613,-516.64379166,0.000247,3]
[387227594,1758661877629,-5014.27452,0.000247,30]
[387227595,1758661877644,-3500.0,0.000247,9]
[387227596,1758661877659,-200.0,0.00024702,2]
[387227597,1758661877674,-164.81721866,0.00024715,2]
[387227598,1758661877689,-733.8298129,0.00024715,2]
[387227599,1758661877706,-836.4543414,0.00024715,2]
[387227600,1758661877721,-150.0,0.00024736,2]
[387227601,1758661877736,-250.0,0.00024736,2]
[387227602,1758661877751,-150.0,0.00024736,2]
[387227603,1758661877766,-500.0,0.00024736,2]
[387227604,1758661877780,-150.0,0.00024736,2]
[387227605,1758661877795,-500.0,0.00024736,2]
[387227606,1758661877810,-200.70306235,0.00024736,2]
[387227607,1758661877825,-500.0,0.00024736,2]
[387227608,1758661877840,-500.0,0.00024736,2]
[387227609,1758661877855,-150.0,0.00024736,2]
[387227610,1758661877871,-500.0,0.00024736,2]
[387227611,1758661877885,-500.0,0.00024736,2]
[387227612,1758661877900,-200.0,0.00024736,2]
[387227613,1758661877916,-500.0,0.00024736,2]
[387227614,1758661877932,-150.0,0.00024736,2]
[387227615,1758661877947,-150.0,0.00024736,2]
[387227616,1758661877963,-500.0,0.00024736,2]
[387227617,1758661877986,-150.0,0.00024736,2]
[387227618,1758661878002,-150.0,0.00024736,2]
[387227619,1758661878019,-150.0,0.00024736,2]
[387227620,1758661878035,-258.0114094,0.00024736,2]
[387227621,1758661878050,-500.0,0.00024736,2]
[387227622,1758661878066,-500.0,0.00024736,2]
[387227623,1758661878081,-150.0,0.00024736,2]
[387227624,1758661878098,-150.0,0.00024736,2]
[387227625,1758661878114,-150.0,0.00024736,2]
[387227626,1758661878129,-500.0,0.00024736,2]
[387227627,1758661878146,-500.0,0.00024736,2]
[387227628,1758661878161,-150.0,0.00024736,2]
[387227629,1758661878177,-500.0,0.00024736,2]
[387227630,1758661878193,-500.0,0.00024736,2]
[387227631,1758661878209,-595.0,0.00024736,2]
[387227632,1758661878225,-500.0,0.00024736,2]
[387227633,1758661878242,-500.0,0.00024736,2]
[387227634,1758661878258,-1512.8491913,0.00024752,2]
[387227635,1758661878273,-651.96,0.00024776,3]
[387227636,1758661878289,-1960.58917941,0.00024776,2]
[387227637,1758661878305,-587.0,0.00024791,2]
[387227638,1758661878320,-525.05123791,0.00024797,3]
[387227639,1758661878338,-1018.91,0.00024797,2]
[387227640,1758661878354,-1066.77,0.00024797,2]
[387227641,1758661878369,-574.01,0.00024797,3]
[387227642,1758661878386,-16419.81,0.00024797,2]
[387227643,1758661878402,-752.36,0.00024798,3]
[387227644,1758661878417,-1148.93,0.00024798,3]
[387227645,1758661878433,-500.0,0.00024798,3]
[387227646,1758661878449,-1012.3,0.00024798,3]
[387227647,1758661878464,-752.36,0.00024799,3]
[387227648,1758661878480,-752.36,0.00024799,3]
[387227649,1758661878496,-1148.93,0.00024799,3]
[387227650,1758661878511,-1148.93,0.00024799,3]
[387227651,1758661878527,-1018.91,0.00024799,2]
[387227652,1758661878543,-1018.91,0.00024799,2]
[387227653,1758661878558,-1018.91,0.00024799,2]
[387227654,1758661878573,-500.0,0.00024799,3]
[387227655,1758661878590,-500.0,0.00024799,3]
[387227656,1758661878606,-1881.16,0.00024799,3]
[387227657,1758661878622,-1881.16,0.00024799,3]
[387227658,1758661878639,-1881.16,0.00024799,3]
[387227659,1758661878654,-1066.77,0.00024799,2]
[387227660,1758661878669,-1066.77,0.00024799,2]
[387227661,1758661878685,-1066.77,0.00024799,2]
[387227662,1758661878700,-574.01,0.00024799,3]
[387227663,1758661878716,-574.01,0.00024799,3]
[387227664,1758661878731,-574.01,0.00024799,3]
[387227665,1758661878747,-1012.3,0.00024799,3]
[387227666,1758661878763,-1012.3,0.00024799,3]
[387227667,1758661878780,-16419.81,0.00024799,2]
[387227668,1758661878796,-16419.81,0.00024799,2]
[387227669,1758661878812,-16419.81,0.00024799,2]
[387227670,1758661878829,-651.96,0.00024799,3]
[387227671,1758661878845,-651.96,0.00024799,3]
[387227672,1758661878861,-24026.49628499,0.000248,2]
[387227673,1758661878877,-150.0,0.000248,2]
[387227674,1758661878893,-1152.76275354,0.000248,2]
[387227675,1758661878909,-150.0,0.000248,2]
[387227676,1758661878925,-13819.20609499,0.000248,2]
[387227677,1758661878940,-4038.99533054,0.000248,2]
[387227678,1758661878956,-1500.0,0.000248,28]
[387227679,1758661878971,-1500.0,0.000248,28]
[387227680,1758661878987,-1500.0,0.000248,28]
[387227681,1758661879003,-1500.0,0.000248,28]
[387227682,1758661879019,-1500.0,0.000248,28]
[387227683,1758661879035,-1500.0,0.000248,28]
[387227684,1758661879050,-1500.0,0.000248,28]
[387227685,1758661879067,-1500.0,0.000248,28]
[387227686,1758661879083,-1500.0,0.000248,28]
[387227687,1758661879099,-1500.0,0.000248,28]
[387227688,1758661879115,-1500.0,0.000248,28]
[387227689,1758661879130,-1500.0,0.000248,28]
[387227690,1758661879146,-1500.0,0.000248,28]
[387227691,1758661879160,-1500.0,0.000248,28]
[387227692,1758661879176,-1500.0,0.000248,28]
[387227693,1758661879191,-1500.0,0.000248,28]
[387227694,1758661879207,-1500.0,0.000248,28]
[387227695,1758661879223,-1500.0,0.000248,28]
[387227696,1758661879237,-1500.0,0.000248,28]
[387227697,1758661879255,-1500.0,0.000248,28]
[387227698,1758661879271,-1500.0,0.000248,28]
[387227699,1758661879285,-1500.0,0.000248,28]
[387227700,1758661879301,-1500.0,0.000248,28]
[387227701,1758661879315,-1500.0,0.000248,28]
[387227702,1758661879331,-1500.0,0.000248,28]
[387227703,1758661879345,-1500.0,0.000248,28]
[387227704,1758661879360,-1500.0,0.000248,28]
[387227705,1758661879374,-1500.0,0.000248,28]
[387227706,1758661879678,-700.0,0.000248,9]
[387227707,1758661879688,-542722.44186524,0.000248,2]
[387227708,1758661880821,1497.710366,0.00017995,2]
[387227709,1758661880877,166.006144,0.00018475,2]
[387227710,1758661880907,166.400868,0.00018475,2]
[387227711,1758661881148,166.006144,0.00017997,2]
[387227712,1758661881185,166.400868,0.00017997,2]
[387227713,1758661881255,166.006144,0.00017995,2]
[387227714,1758661881298,166.400868,0.00017995,2]
[387227715,1758661881327,1497.710366,0.00017995,2]
[387227716,1758661881471,163.160063,0.00018475,2]
[387227717,1758661881596,166.006144,0.00017989,2]
[387227718,1758661881645,163.160063,0.00017997,2]
[387227719,1758661881729,-163.160063,0.00018729,2]
[387227720,1758661881739,-151.0,0.00024657,7]
[387227721,1758661881748,-151.0,0.00024657,7]
[387227722,1758661881758,-151.0,0.00024657,7]
[387227723,1758661881767,-473.361566,0.00024657,7]
[387227724,1758661881777,-400.0,0.00024657,3]
[387227725,1758661881786,-473.361566,0.00024657,7]
[387227726,1758661881796,-400.0,0.00024657,3]
[387227727,1758661881805,-151.0,0.00024657,7]
[387227728,1758661881815,-400.0,0.00024657,3]
[387227729,1758661881824,-672.95,0.00024657,3]
[387227730,1758661881833,-473.361566,0.00024657,7]
[387227731,1758661881844,-151.0,0.00024657,7]
[387227732,1758661881853,-400.0,0.00024657,3]
[387227733,1758661881863,-473.361566,0.00024657,7]
[387227734,1758661881873,-400.0,0.00024657,3]
[387227735,1758661881882,-151.0,0.00024657,7]
[387227736,1758661881892,-473.361566,0.00024657,7]
[387227737,1758661881901,-151.0,0.00024657,7]
[387227738,1758661881911,-473.361566,0.00024657,7]
[387227739,1758661881920,-73526.65944376,0.000248,2]
[387227740,1758661881929,-161.23326321,0.00024824,2]
[387227741,1758661881938,-500.0,0.00024826,5]
[387227742,1758661881949,-4106.25973638,0.0002483,2]
[387227743,1758661882217,-198.77,0.00024866,2]
[387227744,1758661882228,-947.43,0.00024889,3]
[387227745,1758661882237,-671.0,0.00024891,2]
[387227746,1758661882247,-20000.0,0.00024896,2]
[387227747,1758661882256,-651.96,0.00024898,3]
[387227748,1758661882265,-752.36,0.00024899,3]
[387227749,1758661882274,-752.36,0.00024899,3]
[387227750,1758661882283,-752.36,0.00024899,3]
[387227751,1758661882292,-752.36,0.00024899,3]
[387227752,1758661882302,-752.36,0.00024899,3]
[387227753,1758661882311,-752.37809737,0.00024899,3]
[387227754,1758661882320,-1148.93,0.00024899,3]
[387227755,1758661882329,-1148.93,0.00024899,3]
[387227756,1758661882338,-1148.93,0.00024899,3]
[387227757,1758661882347,-1148.93,0.00024899,3]
[387227758,1758661882357,-1148.93,0.00024899,3]
[387227759,1758661882366,-1148.93773458,0.00024899,3]
[387227760,1758661882375,-1018.91,0.00024899,2]
[387227761,1758661882384,-1604.9,0.00024899,3]
[387227762,1758661882393,-1604.9,0.00024899,3]
[387227763,1758661882402,-1604.9,0.00024899,3]
[387227764,1758661882411,-1604.9,0.00024899,3]
[387227765,1758661882421,-1604.9,0.00024899,3]
[387227766,1758661882430,-1605.1280011,0.00024899,3]
[387227767,1758661882439,-500.0,0.00024899,3]
[387227768,1758661882448,-500.0,0.00024899,3]
[387227769,1758661882457,-350.16788703,0.00024899,3]
[387227770,1758661882466,-1881.16,0.00024899,3]
[387227771,1758661882476,-1881.16,0.00024899,3]
[387227772,1758661882485,-1881.16,0.00024899,3]
[387227773,1758661882495,-1066.77,0.00024899,2]
[387227774,1758661882504,-574.01,0.00024899,3]
[387227775,1758661882513,-1012.3,0.00024899,3]
[387227776,1758661882523,-1012.3,0.00024899,3]
[387227777,1758661882532,-1012.3,0.00024899,3]
[387227778,1758661882541,-1012.3,0.00024899,3]
[387227779,1758661882550,-1012.3,0.00024899,3]
[387227780,1758661882559,-1012.41184929,0.00024899,3]
[387227781,1758661882568,-16419.81,0.00024899,2]
[387227782,1758661882578,-700.0,0.000249,9]
[387227783,1758661882589,-14863.1290902,0.000249,2]
[387227784,1758661882599,-198.77,0.00024908,2]
[387227785,1758661882608,-684.44927122,0.00024918,2]
[387227786,1758661882618,-2527.92839,0.0002492,2]
[387227787,1758661882627,-1018.91,0.00024929,2]
[387227788,1758661882638,-1881.16,0.00024929,3]
[387227789,1758661882647,-1066.77,0.00024929,2]
[387227790,1758661882656,-574.01,0.00024929,3]
[387227791,1758661882666,-16419.81,0.00024929,2]
[387227792,1758661882676,-500.79292713,0.0002493,2]
[387227793,1758661882685,-300.0,0.0002493,10]
[387227794,1758661882694,-300.0,0.0002493,10]
[387227795,1758661882703,-584.70018181,0.0002493,2]
[387227796,1758661882712,-300.0,0.0002493,10]
[387227797,1758661882722,-300.0,0.0002493,10]
[387227798,1758661882731,-1018.91,0.0002493,2]
[387227799,1758661882740,-1018.91,0.0002493,2]
[387227800,1758661882749,-1018.91,0.0002493,2]
[387227801,1758661882758,-1018.91,0.0002493,2]
[387227802,1758661882767,-1019.03479596,0.0002493,2]
[387227803,1758661882777,-1881.16,0.0002493,3]
[387227804,1758661882785,-1881.16,0.0002493,3]
[387227805,1758661882794,-1881.16,0.0002493,3]
[387227806,1758661882803,-1881.16,0.0002493,3]
[387227807,1758661882813,-1881.16,0.0002493,3]
[387227808,1758661882823,-1881.16,0.0002493,3]
[387227809,1758661882832,-1881.37667016,0.0002493,3]
[387227810,1758661882841,-1066.77,0.0002493,2]
[387227811,1758661882850,-1066.77,0.0002493,2]
[387227812,1758661882859,-1066.77,0.0002493,2]
[387227813,1758661882868,-1066.77,0.0002493,2]
[387227814,1758661882877,-1066.90605748,0.0002493,2]
[387227815,1758661882886,-574.01,0.0002493,3]
[387227816,1758661882895,-574.01,0.0002493,3]
[387227817,1758661882904,-574.01,0.0002493,3]
[387227818,1758661882914,-574.01,0.0002493,3]
[387227819,1758661882923,-574.16526741,0.0002493,3]
[387227820,1758661882933,-16419.81,0.0002493,2]
[387227821,1758661882942,-16419.81,0.0002493,2]
[387227822,1758661882951,-16419.81,0.0002493,2]
[387227823,1758661882962,-16419.81,0.0002493,2]
[387227824,1758661882971,-16419.94822805,0.0002493,2]
[387227825,1758661882980,-651.96,0.0002493,3]
[387227826,1758661882990,-651.96,0.0002493,3]
[387227827,1758661882999,-651.96,0.0002493,3]
[387227828,1758661883009,-651.96,0.0002493,3]
[387227829,1758661883018,-651.96,0.0002493,3]
[387227830,1758661883027,-651.96,0.0002493,3]
[387227831,1758661883036,-651.96,0.0002493,3]
[387227832,1758661883045,-652.06,0.0002493,3]
[387227833,1758661883055,-18124.78724171,0.00024931,2]
[387227834,1758661883064,-400.0,0.00024931,2]
[387227835,1758661883074,-400.0,0.00024931,2]
[387227836,1758661883083,-1046.75,0.00024931,3]
[387227837,1758661883093,-300.01315538,0.00024931,3]
[387227838,1758661883102,-400.0,0.00024931,3]
[387227839,1758661883111,-400.0,0.00024931,3]
[387227840,1758661883120,-400.0,0.00024931,3]
[387227841,1758661883129,-400.0,0.00024931,3]
[387227842,1758661883141,-400.0,0.00024931,3]
[387227843,1758661883150,-400.0,0.00024931,3]
[387227844,1758661883159,-400.0,0.00024931,3]
[387227845,1758661883169,-536.53,0.00024931,3]
[387227846,1758661883178,-400.0,0.00024931,3]
[387227847,1758661883187,-400.0,0.00024931,3]
[387227848,1758661883196,-451.32,0.00024931,3]
[387227849,1758661883205,-400.0,0.00024931,3]
[387227850,1758661883215,-400.0,0.00024931,3]
[387227851,1758661883224,-400.0,0.00024931,3]
[387227852,1758661883233,-400.0,0.00024931,3]
[387227853,1758661883242,-826.6,0.00024931,3]
[387227854,1758661883252,-402.50547299,0.00024931,3]
[387227855,1758661883261,-517.21,0.00024931,3]
[387227856,1758661883270,-400.0,0.00024931,3]
[387227857,1758661883279,-452.63,0.00024931,3]
[387227858,1758661883288,-729.15,0.00024931,3]
[387227859,1758661883297,-672.04,0.00024931,3]
[387227860,1758661883306,-400.0,0.00024931,3]
[387227861,1758661883315,-507.29,0.00024931,3]
[387227862,1758661883324,-415.57,0.00024931,3]
[387227863,1758661883333,-400.0,0.00024931,3]
[387227864,1758661883342,-788.96,0.00024931,3]
[387227865,1758661883351,-400.0,0.00024931,3]
[387227866,1758661883361,-462.73,0.00024931,3]
[387227867,1758661883370,-400.0,0.00024931,3]
[387227868,1758661883379,-606.38,0.00024931,3]
[387227869,1758661883388,-446.71,0.00024931,3]
[387227870,1758661883398,-400.0,0.00024931,3]
[387227871,1758661883406,-400.0,0.00024931,3]
[387227872,1758661883415,-400.0,0.00024931,3]
[387227873,1758661883424,-400.0,0.00024931,3]
[387227874,1758661883434,-400.0,0.00024931,3]
[387227875,1758661883443,-866.96,0.00024931,3]
[387227876,1758661883452,-552.42,0.00024931,3]
[387227877,1758661883461,-400.0,0.00024931,3]
[387227878,1758661883470,-400.0,0.00024931,3]
[387227879,1758661883479,-800.41,0.00024931,3]
[387227880,1758661883488,-400.0,0.00024931,3]
[387227881,1758661883498,-400.0,0.00024931,3]
[387227882,1758661883507,-400.0,0.00024931,3]
[387227883,1758661883516,-1261.22,0.00024931,3]
[387227884,1758661883525,-400.0,0.00024931,3]
[387227885,1758661883535,-400.0,0.00024931,3]
[387227886,1758661883544,-400.0,0.00024931,3]
[387227887,1758661883554,-400.0,0.00024931,3]
[387227888,1758661883563,-400.0,0.00024931,3]
[387227889,1758661883573,-400.0,0.00024931,3]
[387227890,1758661883582,-400.0,0.00024931,3]
[387227891,1758661883597,-400.0,0.00024931,3]
[387227892,1758661883606,-400.0,0.00024931,3]
[387227893,1758661883615,-629.07,0.00024931,3]
[387227894,1758661883625,-602.86,0.00024931,3]
[387227895,1758661883636,-400.0,0.00024931,3]
[387227896,1758661883645,-400.0,0.00024931,3]
[387227897,1758661883654,-400.0,0.00024931,3]
[387227898,1758661883664,-400.0,0.00024931,3]
[387227899,1758661883675,-400.0,0.00024931,3]
[387227900,1758661883684,-472.7,0.00024931,3]
[387227901,1758661883694,-400.0,0.00024931,3]
[387227902,1758661883703,-400.0,0.00024931,3]
[387227903,1758661883712,-400.0,0.00024931,3]
[387227904,1758661883722,-570.2,0.00024931,3]
[387227905,1758661883731,-570.2,0.00024931,3]
[387227906,1758661883740,-400.0,0.00024931,3]
[387227907,1758661883750,-400.0,0.00024931,3]
[387227908,1758661883759,-400.0,0.00024931,3]
[387227909,1758661883769,-485.45,0.00024931,3]
[387227910,1758661883778,-400.0,0.00024931,3]
[387227911,1758661883787,-400.0,0.00024931,3]
[387227912,1758661883797,-400.0,0.00024931,3]
[387227913,1758661883806,-473.1,0.00024931,3]
[387227914,1758661883816,-400.0,0.00024931,3]
[387227915,1758661883825,-400.0,0.00024931,3]
[387227916,1758661883834,-400.0,0.00024931,3]
[387227917,1758661883843,-418.81,0.00024931,3]
[387227918,1758661883853,-754.29,0.00024931,3]
[387227919,1758661883863,-400.0,0.00024931,3]
[387227920,1758661883872,-400.0,0.00024931,3]
[387227921,1758661883882,-400.0,0.00024931,3]
[387227922,1758661883891,-400.0,0.00024931,3]
[387227923,1758661883901,-400.0,0.00024931,3]
[387227924,1758661883910,-400.0,0.00024931,3]
[387227925,1758661883919,-400.0,0.00024931,3]
[387227926,1758661883929,-463.59,0.00024931,3]
[387227927,1758661883938,-400.0,0.00024931,3]
[387227928,1758661883947,-400.0,0.00024931,3]
[387227929,1758661883957,-400.0,0.00024931,3]
[387227930,1758661883966,-400.0,0.00024931,3]
[387227931,1758661883975,-400.0,0.00024931,3]
[387227932,1758661883985,-400.0,0.00024931,3]
[387227933,1758661883995,-674.38,0.00024931,3]
[387227934,1758661884004,-498.91,0.00024931,3]
[387227935,1758661884013,-678.32,0.00024931,3]
[387227936,1758661884022,-416.93,0.00024931,3]
[387227937,1758661884032,-172.95,0.00024931,3]
[387227938,1758661884041,-400.0,0.00024931,3]
[387227939,1758661884051,-600.71,0.00024931,3]
[387227940,1758661884060,-400.0,0.00024931,3]
[387227941,1758661884070,-400.0,0.00024931,3]
[387227942,1758661884079,-400.0,0.00024931,3]
[387227943,1758661884089,-419.16,0.00024931,3]
[387227944,1758661884098,-400.0,0.00024931,3]
[387227945,1758661884107,-400.0,0.00024931,3]
[387227946,1758661884116,-517.24,0.00024931,3]
[387227947,1758661884126,-833.91,0.00024931,3]
[387227948,1758661884136,-282.66179509,0.00024931,3]
[387227949,1758661884145,-400.0,0.00024931,3]
[387227950,1758661884155,-518.87,0.00024931,3]
[387227951,1758661884168,-400.0,0.00024931,3]
[387227952,1758661884178,-400.0,0.00024931,3]
[387227953,1758661884187,-400.0,0.00024931,3]
[387227954,1758661884197,-400.0,0.00024931,3]
[387227955,1758661884206,-400.0,0.00024931,3]
[387227956,1758661884217,-400.0,0.00024931,3]
[387227957,1758661884227,-400.0,0.00024931,3]
[387227958,1758661884237,-400.0,0.00024931,3]
[387227959,1758661884247,-400.0,0.00024931,3]
[387227960,1758661884258,-1067.95,0.00024931,3]
[387227961,1758661884267,-1023.45,0.00024931,3]
[387227962,1758661884276,-400.0,0.00024931,3]
[387227963,1758661884286,-400.0,0.00024931,3]
[387227964,1758661884295,-400.0,0.00024931,3]
[387227965,1758661884304,-400.27,0.00024931,3]
[387227966,1758661884313,-401.22,0.00024931,3]
[387227967,1758661884324,-400.0,0.00024931,3]
[387227968,1758661884334,-260.89053847,0.00024931,3]
[387227969,1758661884344,-400.0,0.00024931,3]
[387227970,1758661884355,-400.0,0.00024931,3]
[387227971,1758661884366,-400.0,0.00024931,3]
[387227972,1758661884376,-400.0,0.00024931,3]
[387227973,1758661884385,-400.0,0.00024931,3]
[387227974,1758661884394,-400.0,0.00024931,3]
[387227975,1758661884403,-404.89199827,0.00024931,3]
[387227976,1758661884412,-400.0,0.00024931,3]
[387227977,1758661884421,-400.0,0.00024931,3]